Cogmind - Beta 14 @@@ ROGUE MODE // 2025.04.25 @ 18:13:53 Player: Glogmind Result: Self-destructed Performance ------------- Evolutions (1) 500 Regions Visited (2) 400 Robots Destroyed (32) 160 Value Destroyed (614) 614 Prototype IDs (0) 0 Alien Tech Used (0) 0 Bonus (0) 0 TOTAL SCORE: 1674 Bonus ------- None Cogmind --------- Core Integrity 373/400 Matter 274/300 Energy 100/100 System Corruption 0% Temperature Cool (6) Movement Treading (240) Ox1 Location -9/Materials Parts ------- > --- POWER (1) -------- (None) > --- PROPULSION (4) --- Light Treads Light Treads > --- UTILITY (2) ------ High-capacity Storage Unit Sensor Array > --- WEAPON (2) ------- Light Assault Rifle Light Assault Rifle > --- INVENTORY (20) --- Ion Engine Light Ion Engine Light Nuclear Core Compact Wheel Compact Wheel Improved Heat Sink Signal Interpreter Signal Interpreter Targeting Computer Light Armor Plating Light Armor Plating Light Armor Plating Light Armor Plating Tractor Beam Light Cannon Flail Peak State ------------ > --- POWER ------------ Ion Engine > --- PROPULSION ------- Light Treads Light Treads Light Treads > --- UTILITY ---------- High-capacity Storage Unit Sensor Array > --- WEAPON ----------- Light Assault Rifle Light Cannon > --- INVENTORY -------- Ion Engine Light Ion Engine Light Nuclear Core Compact Wheel Compact Wheel Improved Heat Sink Signal Interpreter Signal Interpreter Targeting Computer Light Armor Plating Light Armor Plating Light Armor Plating Light Armor Plating Tractor Beam Light Assault Rifle Light Assault Rifle [Rating: 10] Favorites ----------- Power Ion Engine Engine Ion Engine Propulsion Light Treads Treads Light Treads Leg Aluminum Leg Utility Sensor Array Device Sensor Array Storage High-capacity Storage Unit Weapon Light Assault Rifle Ballistic Gun Light Assault Rifle Ballistic Cannon Light Cannon Build | -11 -10 -9 ------- Run | Yrd Mat Mat Slots Evolved 2 | . . 2 Power . | . . . Propulsion 2 | . . 2 Utility . | . . . Weapon . | . . . Parts Attached 13 | 5 5 3 Power 2 | 1 1 . Engine 2 | 1 1 . Core . | . . . Reactor . | . . . Propulsion 4 | 2 1 1 Treads 4 | 2 1 1 Leg . | . . . Wheel . | . . . Hover . | . . . Flight . | . . . Utility 4 | 2 2 . Device 3 | 2 1 . Storage 1 | . 1 . Processor . | . . . Hackware . | . . . Protection . | . . . Artifact . | . . . Weapon 3 | . 1 2 Energy Gun . | . . . Energy Cannon . | . . . Ballistic Gun 2 | . . 2 Ballistic Cannon 1 | . 1 . Launcher . | . . . Special Weapon . | . . . Impact Weapon . | . . . Slashing Weapon . | . . . Piercing Weapon . | . . . Special Melee Weapon . | . . . Unidentified Prototypes . | . . . Parts Lost 5 | . 2 3 Power 1 | . . 1 Propulsion 2 | . 1 1 Utility 1 | . 1 . Weapon 1 | . . 1 Highest Loss Streak 2 | . 1 2 To Critical Strikes . | . . . Average Slot Usage (%) 94 | . 98 78 Engine 13 | . 14 11 Treads 26 | . 27 23 Device 12 | . 12 11 Storage 13 | . 14 11 Ballistic Gun 15 | . 16 11 Ballistic Cannon 11 | . 11 10 Peak Build Rating 10 | 7 9 10 Average Rating 8 | 6 8 9 On Entrance 7 | 6 7 9 Naked Turns . | . . . Heaviest Build 50 | 13 50 50 Greatest Support 60 | 40 40 60 Greatest Overweight (x) 1 | . 1 1 Average Overweight (x) . | . . . Largest Inventory Capacity 20 | 8 20 20 Average Capacity 17 | 8 17 20 Most Carried 18 | 7 18 17 Average Carried 14 | 6 14 16 Final Capacity 20 | 8 20 20 Final Carried 17 | 7 17 16 Class Distribution -------------------- 79% | Mutant 20% | Scavenger-Mutant Dominant Class ---------------- Mutant | -10/Materials Scavenger-Mutant | -9/Materials Resources | -11 -10 -9 ----------- Run | Yrd Mat Mat Matter Collected 659 | 274 298 87 Remotely 58 | 58 . . Salvage Created 734 | 148 544 42 Parts 65 | 13 51 1 Haulers Intercepted 1 | . 1 . Recyclers Shooed 2 | . 1 1 Parts Field Recycled . | . . . Retrieved Matter . | . . . Parts Self-Destructed . | . . . Prevented . | . . . Kills | -11 -10 -9 ------- Run | Yrd Mat Mat Combat Hostiles Destroyed 21 | . 19 2 Guns 7 | . 6 1 Cannons 14 | . 13 1 Classes Destroyed 8 | 2 5 1 Tunneler 4 | 4 . . Hauler 1 | . 1 . Recycler 2 | 1 1 . Operator 2 | . 2 . Watcher 2 | . 2 . Swarmer 10 | . 9 1 Grunt 10 | . 10 . Sentry 1 | . . 1 Best Kill Streak 3 | 3 3 1 Combat Bots Only 3 | . 3 1 Max Kills in Single Turn 1 | 1 1 1 Gunslinging . | . . . Exploded . | . . . Melee . | . . . Uniques/NPCs Destroyed . | . . . Combat | -11 -10 -9 -------- Run | Yrd Mat Mat Hostile Shots Fired 127 | . 84 43 Missed 38 | . 25 13 Damage Taken 903 | . 602 301 Core 135 | . 108 27 Absorbed by Shields . | . . . Core Remaining (%) 78 | 100 56 . Volleys Fired 119 | 12 94 13 Largest 2 | 2 2 2 Hottest 40 | 40 40 40 Shots Fired 164 | 24 123 17 Gun 90 | 24 58 8 Cannon 74 | . 65 9 Launcher . | . . . Special . | . . . Kinetic 164 | 24 123 17 Thermal . | . . . Explosive . | . . . Electromagnetic . | . . . Robot Hit Streak 11 | 8 11 8 Robot Miss Streak 3 | 3 3 2 Penetration Max . | . . . Secondary Targets 3 | . 2 1 Max Gunslinging Chain 1 | . 1 1 Shots Hit Robots 116 | 14 90 12 Core Hits 49 | 7 36 6 Critical Kills . | . . . Critical Parts Destroyed . | . . . Critical Strikes 6 | . 4 2 Blast 6 | . 4 2 Melee Attacks . | . . . Impact . | . . . Slashing . | . . . Piercing . | . . . Sneak Attacks . | . . . Combat Hostiles . | . . . Follow-up Attacks . | . . . Damage Inflicted 1556 | 124 1228 204 Guns 509 | 123 333 53 Cannons 1017 | . 875 142 Explosions . | . . . Melee . | . . . Ramming 30 | 1 20 9 Kinetic 1526 | 123 1208 195 Thermal . | . . . Explosive . | . . . Electromagnetic . | . . . Impact . | . . . Slashing . | . . . Piercing . | . . . Highest Corruption . | . . . Average Corruption . | . . . Corruption Purged . | . . . Corruption Blocked . | . . . Overload Shots . | . . . Overflow Damage 14 | . 14 . Projectiles 14 | . 14 . Explosions . | . . . Melee . | . . . Knockbacks 8 | . 8 . Impact . | . . . Kinetic 8 | . 8 . Secondary . | . . . Self-Inflicted Damage . | . . . Shots . | . . . Rammed 5 | 1 3 1 Targets Rammed 5 | 1 3 1 Kicked . | . . . Crushed . | . . . Highest Temperature 27 | . 27 3 Average Temperature 6 | . 7 3 Received Heat Transfer 243 | . 207 36 Siege Activations . | . . . Robots Corrupted . | . . . Combat Hostiles . | . . . Parts Fried . | . . . Impact Corruptions . | . . . Robots Melted . | . . . Combat Hostiles . | . . . Parts Melted . | . . . Heat Transferred . | . . . Parts Sabotaged . | . . . Parts Stolen . | . . . Parts Stripped . | . . . Power Chain Reactions . | . . . Alert | -11 -10 -9 ------- Run | Yrd Mat Mat Peak Influence 275 | 25 275 120 Initial 79 | . 16 79 Average 103 | 12 113 86 Maximum Alert Level 1 | . 1 . Low Security (%) 96 | 100 94 100 Level 1 3 | . 5 . Level 2 . | . . . Level 3 . | . . . Level 4 . | . . . Level 5 . | . . . High Security . | . . . Max Security . | . . . Squads Dispatched 3 | . 3 . Investigation 1 | . 1 . Extermination . | . . . Reinforcement 2 | . 2 . Assault . | . . . Garrison . | . . . Intercept . | . . . Searches Triggered . | . . . Construction Impeded . | . . . Haulers Reinforced . | . . . Active Scanning Responses . | . . . Cargo Convoy Interrupts . | . . . Stealth | -11 -10 -9 --------- Run | Yrd Mat Mat Distress Signals . | . . . Communications Jammed . | . . . Distress Signals . | . . . Times Spotted 40 | . 32 8 Peak Tracking Total 6 | . 3 6 Tactical Retreats 4 | . 4 . Traps | -11 -10 -9 ------- Run | Yrd Mat Mat Traps Triggered 1 | . 1 . Indirectly . | . . . Trap Hack Attempts . | . . . Triggered . | . . . Disarmed . | . . . Reprogrammed . | . . . Reused . | . . . Traps Extracted . | . . . Installed . | . . . Triggered . | . . . Machines | -11 -10 -9 ---------- Run | Yrd Mat Mat Machines Disabled 1 | . 1 . Max in Single Turn 1 | . 1 . Machines Repaired . | . . . Machines Dismantled . | . . . Machines Sabotaged . | . . . Overloaded Fab Kills . | . . . Hacking | -11 -10 -9 --------- Run | Yrd Mat Mat Machines Accessed 9 | . 8 1 Terminals 7 | . 6 1 Fabricators . | . . . Repair Stations 1 | . 1 . Recycling Units 1 | . 1 . Scanalyzers . | . . . Garrison Access . | . . . Total Hacks 15 | . 11 4 Successful 9 | . 8 1 Failed 6 | . 3 3 Catastrophic . | . . . Database Lockouts . | . . . Manual 12 | . 8 4 Terminals 12 | . 8 4 Fabricators . | . . . Repair Stations 2 | . 2 . Recycling Units 1 | . 1 . Scanalyzers . | . . . Garrison Access . | . . . Terminal Hacks 1 | . . 1 Robot Analysis 1 | . . 1 Fabricator Hacks . | . . . Repair Station Hacks 1 | . 1 . Scan Component 1 | . 1 . Recycling Unit Hacks 1 | . 1 . Retrieve Components 1 | . 1 . Scanalyzer . | . . . Garrison Access Hacks . | . . . Unauthorized Hacks 6 | . 6 . Terminals 6 | . 6 . Skim 6 | . 6 . Fabricators . | . . . Repair Stations . | . . . Recycling Units . | . . . Scanalyzers . | . . . Garrison Access . | . . . Data Cores Recovered 1 | . 1 . Used . | . . . Hacking Detections 7 | . 6 1 Full Trace Events . | . . . Feedback Events . | . . . Feedback Blocked . | . . . Robot Schematics Acquired . | . . . Robots Built . | . . . Authchips . | . . . Time . | . . . Total Robot Build Rating . | . . . Part Schematics Acquired . | . . . Parts Built . | . . . Authchips . | . . . Time . | . . . Total Part Build Rating . | . . . Parts Repaired . | . . . Time . | . . . Parts Recycled . | . . . Recycled Matter . | . . . Retrieved Matter . | . . . Retrieved Components 10 | . 10 . Parts Scanalyzed . | . . . Part Schematics Acquired . | . . . Parts Damaged . | . . . Bothacking | -11 -10 -9 ------------ Run | Yrd Mat Mat Used RIF Installer . | . . . Robots Hacked . | . . . Non-combat . | . . . Combat . | . . . Robot Hacks Applied . | . . . Relay Couplers Released . | . . . Fabnet Peak Effective % . | . . . Robots Rewired . | . . . Allies Hacked . | . . . Hacks Repelled . | . . . Allies | -11 -10 -9 -------- Run | Yrd Mat Mat Total Allies . | . . . Largest Group . | . . . Highest-Rated Group . | . . . Highest-Rated Ally . | . . . Total Orders . | . . . Ally Attacks . | . . . Total Damage . | . . . Kills . | . . . Allies Corrupted . | . . . Allies Melted . | . . . Intel | -11 -10 -9 ------- Run | Yrd Mat Mat Robot Analysis Total 1 | . . 1 Derelict Logs Recovered . | . . . Drone Launches . | . . . Drone Recoveries . | . . . Exploration | -11 -10 -9 ------------- Run | Yrd Mat Mat Turns Passed 2482 | 104 1858 520 Spaces Moved 960 | 37 712 211 Core . | . . . Treads 951 | 28 712 211 Legs 9 | 9 . . Wheels . | . . . Hover . | . . . Flight . | . . . Fastest Speed 120 | 120 160 160 Average Speed 215 | 150 216 225 Slowest Speed 240 | 160 240 240 Overloaded Moves . | . . . Propulsion Burnouts . | . . . Robots Hopped . | . . . Cave-ins Triggered . | . . . Exploration Rate (%) 38 | 5 90 20 Regions Visited 2 Branch Regions . Pre-discovered Areas . | . . . Known Exits Taken . | . . . Unknown Exits Taken 2 | 1 1 . Scrap Searched . | . . . Spaces Dug . | . . . Terrain Destroyed . | . . . Melee . | . . . Projectile . | . . . AOE . | . . . Terrain Rammed . | . . . Walls Destroyed . | . . . Machines Disabled . | . . . Actions | -11 -10 -9 --------- Run | Yrd Mat Mat Total 1217 | 64 916 237 Wait 105 | 9 88 8 Move 959 | 37 711 211 Hop . | . . . Pick Up 12 | . 11 1 Fast Attach 4 | 2 2 . Attach 3 | . 1 2 Detach 2 | 1 1 . Swap 6 | 3 2 1 Drop 3 | . 3 . Fire 119 | 12 94 13 Melee . | . . . Ram . | . . . Kick . | . . . Crush 4 | . 3 1 Escape Stasis . | . . . Rewire . | . . . Trap . | . . . Miscellaneous . | . . . Route ------- -11/Scrapyard -10/Materials (discovered 3 exits: *Mat x2 / [*Min]) -9/Materials (discovered 1 exit: [*Sto]) History --------- Turn | Location | Event 1 | -11/Scrapyard | Discovered new exit (range 1) 105 | -11/Scrapyard | Entered Materials 312 | -10/Materials | Build established: Mutant 749 | -10/Materials | Discovered new exit (range 4) 1161 | -10/Materials | Discovered new exit (range 9) 1653 | -10/Materials | Discovered new exit (range 14) 1963 | -10/Materials | Entered another Materials area 1963 | -9/Materials | Evolved 2 slots: Propulsion x2 2024 | -9/Materials | Discovered new exit (range 8) 2269 | -9/Materials | Build established: Scavenger-Mutant 2483 | -9/Materials | Self-destructed Last Messages --------------- Acquired 2 matter. K-01 Serf collects debris. Acquired 26 matter. K-01 Serf collects debris. Acquired 10 matter. K-01 Serf collects debris. Acquired Flail. Acquired 3 matter. Slammed into K-01 Serf. Acquired 46 matter. S-10 Pest Lgt. Ion Engine blasted off. Lgt. Assault Rifle destroyed. S-10 Pest destroyed. R-06 Scavenger collects Lgt. Assault Rifle. R-06 Scavenger collects Lgt. Ion Engine. R-06 Scavenger collects Flight Unit. S-10 Pest destroyed. Switching to secondary target: G-34 Mercenary. R-06 Scavenger collects Lgt. Ion Engine. Ion Engine destroyed. Map ----- +----------------------------------------------------+ | ?????????????????????????????????????????????????? | | ?????????????????????????????????????????????????? | | ?????????????????????????????????????????????????? | | ?????????????????????????????????????????????????? | | ?????????????????????????????????????????????????? | | ?????????????????????????????????????????????????? | | ?????????????????????????????????????????????????? | | ?????????????????????????????????????????????????? | | ?????????????????????????????????????????????????? | | ?????????????????????????????????????????????????? | | ?????????????????????????????????????????????????? | | ?????????????????????????????????????????????????? | | ?????????????????????????????????????????????????? | | ?????????????????????????????????????????????????? | | ???????????????????? ########+###????????????????? | | ???????????????????? ?????????????????? | | ???????????????? ?? ?????????????????? | | ???????????????? ??????????????????? | | ???????????????? ur #??????????????????? | | ???????????????? r #??????????????????? | | ????????????????? " r% #??????????????????? | | ?????????????????# "" gs #??????????????????? | | ?????????????????# ""% #??????????????????? | | ?????????????????# """b #??????????????????? | | ?????????????????# "" s #??????????????????? | | ?????????????????# """@ #??????????????????? | | ?????????????????# """ #???????????######## | | ?????????????????# """ r #?????????? | | ?????????????????# " #?????????? | | ????????????# ## #?????????? | | ????????????# #??????????????##### | | ????????????# #??????????????????? | | ????????????# ########???????????? | | ????????????# #???????????? | | ????????????? #???????????? | | ????????????? w #???????????? | | ?????????????? k ##### """" #???????????? | | ?????????????? a ????# """" #???????????? | | ?????????????? ????# """" #???????????? | | ???????????????##### ?????# ############# | | ???????????????????# ?????# | | ??????????????????? ??????# ########## | | ???????????????????????????# #????????? | | ???????????????????????????#+######+###+##???????? | | ?????????????????????????? # #???????? | | ?????????????????????????"""?# % #???????? | | ???????????????????????? """?# #???????? | | ???????????????????????# ""??# """"" #???????? | | ???????????????????????? ? ??# """"""""" #???????? | | ?????????????????????????????# """ """ #???????? | +----------------------------------------------------+ Best States ------------- Heat Dissipation 28 Energy Generation 10 Energy Capacity 250 Matter Stores 300 Matter Capacity 300 Sight Range 16 Robot Scan Range 14 Terrain Scan Density 10 Evasion (%) 45 Recoil Reduction 3 Item Schematics ----------------- None Robot Schematics ------------------ None Fabricated ------------ Nothing Alien Tech Used ----------------- None Achievements -------------- None Challenges ------------ None Game ------ Seed BarrageCentriumScythe Manual? 0 Play Time 00:14:17 Cumulative 58.5 hours Start 2025.04.25 @ 18:01:20 End 2025.04.25 @ 18:13:53 Sessions 1 Manual Loads 0 Difficulty Rogue Special Mode None Game No. 101 Rogue 101 Adventurer 0 Explorer 0 Win Type - Total 1 Types 1/0/0/0/0/0/0/0/0 Lore% 16 Gallery% 43 Achievement% 37 Wizard Run 0 Options --------- Layout 1 ASCII 0 Keyboard 0 Movement Mouse Keybinds 0 Fullscreen 1 Font 24/Smallcaps Map View 50x40 Zoom Use 0% Tactical HUD 0 Map Filters NONE Filters NONE Steam 0 RUN: 72101fd3-61c3-4631-95a8-7643acabe8d5